[Event "Titled Tuesday Blitz July 18 Early 2023"]
[White "Rodriguez Fontecha, Marcos"]
[Black "Sanchez Alvares, Kelvin Antonio"]
[WhiteFideId "2256576"]
[BlackFideId "3906680"]
[WhiteElo "2482"]
[BlackElo "2607"]
[Result "0-1"]
[Round "8"]
[TimeControl "180+2"]
[Date "2023.07.18"]
[WhiteClock "0:00:02"]
[BlackClock "0:00:28"]
[Board "73"]

1. e4 {[%clk 0:02:54]}  e5 {[%clk 0:03:00]} 2. Nf3 {[%clk 0:02:53]}  Nc6 {[%clk 0:03:01]} 3. d4 {[%clk 0:02:53]}  exd4 {[%clk 0:03:01]} 4. Bc4 {[%clk 0:02:54]}  Nf6 {[%clk 0:02:55]} 5. O-O {[%clk 0:02:48]}  Nxe4 {[%clk 0:02:30]} 6. Re1 {[%clk 0:02:47]}  d5 {[%clk 0:02:30]} 7. Bxd5 {[%clk 0:02:46]}  Qxd5 {[%clk 0:02:30]} 8. Nc3 {[%clk 0:02:46]}  Qd8 {[%clk 0:02:28]} 9. Nxe4 {[%clk 0:02:45]}  Be7 {[%clk 0:02:28]} 10. Bg5 {[%clk 0:02:41]}  O-O {[%clk 0:02:25]} 11. Bxe7 {[%clk 0:02:41]}  Qxe7 {[%clk 0:02:26]} 12. Nxd4 {[%clk 0:02:40]}  Nxd4 {[%clk 0:02:26]} 13. Qxd4 {[%clk 0:02:41]}  Bf5 {[%clk 0:02:08]} 14. Ng3 {[%clk 0:02:30]}  Qd7 {[%clk 0:02:08]} 15. Qf4 {[%clk 0:02:21]}  Bg6 {[%clk 0:02:06]} 16. h4 {[%clk 0:02:21]}  Rfe8 {[%clk 0:01:45]} 17. h5 {[%clk 0:02:13]}  Bxc2 {[%clk 0:01:45]} 18. h6 {[%clk 0:02:13]}  Qd6 {[%clk 0:01:33]} 19. Qc4 {[%clk 0:01:50]}  Qc6 {[%clk 0:01:18]} 20. Qxc6 {[%clk 0:01:23]}  bxc6 {[%clk 0:01:19]} 21. Rac1 {[%clk 0:01:23]}  Rxe1+ {[%clk 0:01:17]} 22. Rxe1 {[%clk 0:01:24]}  gxh6 {[%clk 0:01:15]} 23. Re7 {[%clk 0:01:21]}  Rc8 {[%clk 0:01:13]} 24. Ne2 {[%clk 0:01:09]}  Kf8 {[%clk 0:01:12]} 25. Rd7 {[%clk 0:01:03]}  Bf5 {[%clk 0:01:08]} 26. Rd4 {[%clk 0:01:01]}  Rb8 {[%clk 0:01:02]} 27. b3 {[%clk 0:01:00]}  Re8 {[%clk 0:00:53]} 28. Ng3 {[%clk 0:00:55]}  Be6 {[%clk 0:00:51]} 29. Ra4 {[%clk 0:00:54]}  Ra8 {[%clk 0:00:49]} 30. Ne4 {[%clk 0:00:54]}  Ke7 {[%clk 0:00:48]} 31. Nc5 {[%clk 0:00:47]}  Bd5 {[%clk 0:00:48]} 32. Nd3 {[%clk 0:00:46]}  Kd6 {[%clk 0:00:48]} 33. Rh4 {[%clk 0:00:45]}  Rg8 {[%clk 0:00:47]} 34. g3 {[%clk 0:00:41]}  Rg6 {[%clk 0:00:43]} 35. Ra4 {[%clk 0:00:40]}  h5 {[%clk 0:00:39]} 36. Rxa7 {[%clk 0:00:29]}  h4 {[%clk 0:00:39]} 37. Kh2 {[%clk 0:00:30]}  hxg3+ {[%clk 0:00:39]} 38. fxg3 {[%clk 0:00:29]}  Rh6+ {[%clk 0:00:39]} 39. Kg1 {[%clk 0:00:29]}  Rh1+ {[%clk 0:00:36]} 40. Kf2 {[%clk 0:00:29]}  Ra1 {[%clk 0:00:35]} 41. Nb4 {[%clk 0:00:22]}  Bxb3 {[%clk 0:00:34]} 42. Ra6 {[%clk 0:00:20]}  Bd5 {[%clk 0:00:33]} 43. a4 {[%clk 0:00:19]}  Kc5 {[%clk 0:00:30]} 44. Nd3+ {[%clk 0:00:18]}  Kd4 {[%clk 0:00:30]} 45. Nf4 {[%clk 0:00:17]}  Ra2+ {[%clk 0:00:30]} 46. Kg1 {[%clk 0:00:17]}  Ra1+ {[%clk 0:00:30]} 47. Kf2 {[%clk 0:00:16]}  Ra2+ {[%clk 0:00:31]} 48. Ke1 {[%clk 0:00:16]}  Bc4 {[%clk 0:00:31]} 49. Kd1 {[%clk 0:00:02]}  Bxa6 {[%clk 0:00:28]} 0-1


[Site "https://www.chess.com"]

[Event "Titled Tuesday Blitz July 18 Early 2023"]
[White "Leon Oquendo, Jorge"]
[Black "Bochnicka, Vladimir"]
[WhiteFideId "3514803"]
[BlackFideId "14943450"]
[WhiteElo "2605"]
[BlackElo "2469"]
[Result "1-0"]
[Round "8"]
[TimeControl "180+2"]
[Date "2023.07.18"]
[WhiteClock "0:00:26"]
[BlackClock "0:00:06"]
[Board "74"]

1. e4 {[%clk 0:02:40]}  e5 {[%clk 0:02:59]} 2. Nc3 {[%clk 0:02:38]}  Nf6 {[%clk 0:02:57]} 3. g3 {[%clk 0:02:39]}  c6 {[%clk 0:02:55]} 4. Bg2 {[%clk 0:02:39]}  d5 {[%clk 0:02:54]} 5. d3 {[%clk 0:02:38]}  Bb4 {[%clk 0:02:52]} 6. Bd2 {[%clk 0:02:37]}  O-O {[%clk 0:02:50]} 7. Nf3 {[%clk 0:02:36]}  d4 {[%clk 0:02:42]} 8. Ne2 {[%clk 0:02:35]}  Bxd2+ {[%clk 0:02:43]} 9. Nxd2 {[%clk 0:02:35]}  Be6 {[%clk 0:02:35]} 10. O-O {[%clk 0:02:30]}  c5 {[%clk 0:02:32]} 11. h3 {[%clk 0:02:30]}  Ne8 {[%clk 0:02:30]} 12. f4 {[%clk 0:02:30]}  f6 {[%clk 0:02:25]} 13. Nf3 {[%clk 0:02:28]}  Nc6 {[%clk 0:02:24]} 14. b3 {[%clk 0:02:29]}  Nd6 {[%clk 0:02:16]} 15. f5 {[%clk 0:02:27]}  Bf7 {[%clk 0:02:16]} 16. g4 {[%clk 0:02:28]}  b5 {[%clk 0:02:10]} 17. Ng3 {[%clk 0:02:27]}  Kh8 {[%clk 0:02:11]} 18. h4 {[%clk 0:02:28]}  c4 {[%clk 0:02:09]} 19. g5 {[%clk 0:02:28]}  Bg8 {[%clk 0:02:08]} 20. Rf2 {[%clk 0:02:25]}  Rc8 {[%clk 0:02:06]} 21. Bf1 {[%clk 0:02:24]}  a5 {[%clk 0:01:57]} 22. Rg2 {[%clk 0:02:24]}  cxd3 {[%clk 0:01:54]} 23. Bxd3 {[%clk 0:02:20]}  Nb4 {[%clk 0:01:44]} 24. gxf6 {[%clk 0:02:18]}  gxf6 {[%clk 0:01:33]} 25. Qd2 {[%clk 0:02:17]}  Nf7 {[%clk 0:01:13]} 26. Nh5 {[%clk 0:02:12]}  Nxd3 {[%clk 0:00:48]} 27. cxd3 {[%clk 0:02:13]}  Rc6 {[%clk 0:00:43]} 28. Kh1 {[%clk 0:02:09]}  Qe7 {[%clk 0:00:36]} 29. Rag1 {[%clk 0:02:08]}  Rfc8 {[%clk 0:00:35]} 30. Rg7 {[%clk 0:01:49]}  Qb4 {[%clk 0:00:33]} 31. Qg2 {[%clk 0:01:27]}  Qf8 {[%clk 0:00:32]} 32. Nh2 {[%clk 0:01:08]}  Rc2 {[%clk 0:00:29]} 33. Qg3 {[%clk 0:01:02]}  Nh6 {[%clk 0:00:22]} 34. Ng4 {[%clk 0:00:54]}  Nxg4 {[%clk 0:00:22]} 35. Qxg4 {[%clk 0:00:55]}  R2c6 {[%clk 0:00:18]} 36. Qg3 {[%clk 0:00:41]}  a4 {[%clk 0:00:19]} 37. bxa4 {[%clk 0:00:33]}  bxa4 {[%clk 0:00:19]} 38. a3 {[%clk 0:00:34]}  R6c7 {[%clk 0:00:11]} 39. Rxc7 {[%clk 0:00:30]}  Rxc7 {[%clk 0:00:10]} 40. Nxf6 {[%clk 0:00:29]}  Rg7 {[%clk 0:00:08]} 41. Qxe5 {[%clk 0:00:28]}  Rxg1+ {[%clk 0:00:08]} 42. Kxg1 {[%clk 0:00:29]}  Qg7+ {[%clk 0:00:08]} 43. Kh2 {[%clk 0:00:29]}  Bf7 {[%clk 0:00:06]} 44. Qb8+ {[%clk 0:00:26]} 1-0


[Site "https://www.chess.com"]

[Event "Titled Tuesday Blitz July 18 Early 2023"]
[White "Al-Tarboush, Ward"]
[Black "Devaev, Alexander"]
[WhiteFideId "7601450"]
[BlackFideId "4169395"]
[WhiteElo "2595"]
[BlackElo "2450"]
[Result "1-0"]
[Round "8"]
[TimeControl "180+2"]
[Date "2023.07.18"]
[WhiteClock "0:00:56"]
[BlackClock "0:00:04"]
[Board "76"]

1. e4 {[%clk 0:03:00]}  c6 {[%clk 0:02:53]} 2. Nf3 {[%clk 0:03:00]}  d5 {[%clk 0:02:54]} 3. Nc3 {[%clk 0:03:01]}  Nf6 {[%clk 0:02:53]} 4. e5 {[%clk 0:02:57]}  Ne4 {[%clk 0:02:53]} 5. Ne2 {[%clk 0:02:57]}  e6 {[%clk 0:02:54]} 6. d3 {[%clk 0:02:49]}  Nc5 {[%clk 0:02:53]} 7. d4 {[%clk 0:02:49]}  Ncd7 {[%clk 0:02:54]} 8. Ng3 {[%clk 0:02:47]}  c5 {[%clk 0:02:54]} 9. c3 {[%clk 0:02:47]}  Nc6 {[%clk 0:02:55]} 10. Bd3 {[%clk 0:02:45]}  Qb6 {[%clk 0:02:55]} 11. O-O {[%clk 0:02:33]}  cxd4 {[%clk 0:02:54]} 12. Bf4 {[%clk 0:02:26]}  dxc3 {[%clk 0:02:46]} 13. bxc3 {[%clk 0:02:27]}  Nc5 {[%clk 0:02:46]} 14. Rb1 {[%clk 0:02:21]}  Qc7 {[%clk 0:02:47]} 15. Bc2 {[%clk 0:02:16]}  Bd7 {[%clk 0:02:43]} 16. Re1 {[%clk 0:02:09]}  a6 {[%clk 0:02:41]} 17. Nh5 {[%clk 0:02:09]}  O-O-O {[%clk 0:02:11]} 18. Ng5 {[%clk 0:02:08]}  Be8 {[%clk 0:02:08]} 19. Nxh7 {[%clk 0:02:07]}  Ne4 {[%clk 0:02:03]} 20. Nxf8 {[%clk 0:02:04]}  Rxf8 {[%clk 0:02:01]} 21. Bxe4 {[%clk 0:01:43]}  dxe4 {[%clk 0:02:01]} 22. Qe2 {[%clk 0:01:42]}  f5 {[%clk 0:01:08]} 23. exf6 {[%clk 0:01:36]}  e5 {[%clk 0:01:08]} 24. fxg7 {[%clk 0:01:28]}  Bxh5 {[%clk 0:01:05]} 25. gxf8=Q {[%clk 0:01:27]}  Bxe2 {[%clk 0:01:04]} 26. Qf5+ {[%clk 0:01:27]}  Kb8 {[%clk 0:00:52]} 27. Rxe2 {[%clk 0:01:26]}  exf4 {[%clk 0:00:53]} 28. Rxe4 {[%clk 0:01:26]}  Ka8 {[%clk 0:00:47]} 29. Qxf4 {[%clk 0:01:21]}  Qg7 {[%clk 0:00:46]} 30. h4 {[%clk 0:01:15]}  Qxc3 {[%clk 0:00:42]} 31. Rc4 {[%clk 0:01:14]}  Qd3 {[%clk 0:00:35]} 32. Rcc1 {[%clk 0:01:10]}  Qh7 {[%clk 0:00:24]} 33. a4 {[%clk 0:01:08]}  Rg8 {[%clk 0:00:21]} 34. g3 {[%clk 0:01:06]}  Qe7 {[%clk 0:00:18]} 35. Rxc6 {[%clk 0:00:58]}  bxc6 {[%clk 0:00:18]} 36. Qc4 {[%clk 0:00:58]}  Ka7 {[%clk 0:00:04]} 37. Qxg8 {[%clk 0:00:56]} 1-0


[Site "https://www.chess.com"]

[Event "Titled Tuesday Blitz July 18 Early 2023"]
[White "Colas, Joshua"]
[Black "Goldin, Roman"]
[WhiteFideId "2044447"]
[BlackFideId "2803860"]
[WhiteElo "2591"]
[BlackElo "2445"]
[Result "1-0"]
[Round "8"]
[TimeControl "180+2"]
[Date "2023.07.18"]
[WhiteClock "0:00:20"]
[BlackClock "0:00:00"]
[Board "77"]

1. d4 {[%clk 0:03:00]}  Nf6 {[%clk 0:02:55]} 2. Nc3 {[%clk 0:02:58]}  d5 {[%clk 0:02:54]} 3. Bf4 {[%clk 0:02:54]}  g6 {[%clk 0:02:47]} 4. e3 {[%clk 0:02:46]}  Bg7 {[%clk 0:02:46]} 5. h4 {[%clk 0:02:46]}  a6 {[%clk 0:02:43]} 6. h5 {[%clk 0:02:43]}  Nxh5 {[%clk 0:02:41]} 7. Rxh5 {[%clk 0:02:44]}  gxh5 {[%clk 0:02:42]} 8. Qxh5 {[%clk 0:02:45]}  c6 {[%clk 0:02:33]} 9. Nf3 {[%clk 0:02:42]}  h6 {[%clk 0:02:13]} 10. Ne5 {[%clk 0:02:34]}  Rf8 {[%clk 0:01:39]} 11. Bxh6 {[%clk 0:02:26]}  Bxh6 {[%clk 0:01:39]} 12. Qxh6 {[%clk 0:02:27]}  Qd6 {[%clk 0:01:32]} 13. Qh5 {[%clk 0:02:22]}  Nd7 {[%clk 0:01:28]} 14. Bd3 {[%clk 0:02:12]}  Nxe5 {[%clk 0:01:24]} 15. dxe5 {[%clk 0:02:13]}  Qb4 {[%clk 0:01:24]} 16. O-O-O {[%clk 0:01:58]}  Be6 {[%clk 0:00:54]} 17. f4 {[%clk 0:01:44]}  O-O-O {[%clk 0:00:49]} 18. f5 {[%clk 0:01:40]}  Bd7 {[%clk 0:00:50]} 19. a3 {[%clk 0:01:37]}  Qb6 {[%clk 0:00:44]} 20. Qf3 {[%clk 0:01:34]}  e6 {[%clk 0:00:39]} 21. f6 {[%clk 0:01:28]}  c5 {[%clk 0:00:40]} 22. g4 {[%clk 0:01:21]}  Bc6 {[%clk 0:00:33]} 23. Qf4 {[%clk 0:01:13]}  Qa5 {[%clk 0:00:24]} 24. g5 {[%clk 0:01:08]}  b5 {[%clk 0:00:23]} 25. g6 {[%clk 0:00:51]}  fxg6 {[%clk 0:00:23]} 26. Bxg6 {[%clk 0:00:52]}  b4 {[%clk 0:00:23]} 27. axb4 {[%clk 0:00:51]}  cxb4 {[%clk 0:00:21]} 28. Nb1 {[%clk 0:00:50]}  Qc5 {[%clk 0:00:19]} 29. Qd4 {[%clk 0:00:28]}  Qxd4 {[%clk 0:00:15]} 30. exd4 {[%clk 0:00:29]}  a5 {[%clk 0:00:15]} 31. Nd2 {[%clk 0:00:18]}  Be8 {[%clk 0:00:14]} 32. Bd3 {[%clk 0:00:17]}  Rh8 {[%clk 0:00:13]} 33. Nb3 {[%clk 0:00:17]}  a4 {[%clk 0:00:06]} 34. Nc5 {[%clk 0:00:17]}  a3 {[%clk 0:00:06]} 35. bxa3 {[%clk 0:00:17]}  bxa3 {[%clk 0:00:06]} 36. Nxe6 {[%clk 0:00:18]}  Rd7 {[%clk 0:00:04]} 37. Nc5 {[%clk 0:00:18]}  Ra7 {[%clk 0:00:03]} 38. Kd2 {[%clk 0:00:18]}  a2 {[%clk 0:00:03]} 39. Ra1 {[%clk 0:00:19]}  Rh2+ {[%clk 0:00:03]} 40. Kc3 {[%clk 0:00:19]}  Rh3 {[%clk 0:00:02]} 41. Kb2 {[%clk 0:00:20]}  Bf7 {[%clk 0:00:02]} 42. Bf5+ {[%clk 0:00:20]}  Kc7 {[%clk 0:00:00]} 43. Bxh3 {[%clk 0:00:20]} 1-0


[Site "https://www.chess.com"]

[Event "Titled Tuesday Blitz July 18 Early 2023"]
[White "Shishkov, Andrei"]
[Black "luksona14"]
[WhiteFideId "4500563"]
[WhiteElo "2589"]
[BlackElo "2426"]
[Result "0-1"]
[Round "8"]
[TimeControl "180+2"]
[Date "2023.07.18"]
[WhiteClock "0:00:05"]
[BlackClock "0:00:24"]
[Board "78"]

1. d4 {[%clk 0:03:00]}  Nf6 {[%clk 0:02:58]} 2. c4 {[%clk 0:03:01]}  e6 {[%clk 0:02:56]} 3. Nc3 {[%clk 0:03:00]}  Bb4 {[%clk 0:02:54]} 4. Qc2 {[%clk 0:03:01]}  O-O {[%clk 0:02:53]} 5. e4 {[%clk 0:03:00]}  Bxc3+ {[%clk 0:02:48]} 6. bxc3 {[%clk 0:03:00]}  d6 {[%clk 0:02:49]} 7. Bd3 {[%clk 0:02:59]}  e5 {[%clk 0:02:48]} 8. Ne2 {[%clk 0:03:00]}  Nc6 {[%clk 0:02:47]} 9. O-O {[%clk 0:02:49]}  Ne7 {[%clk 0:02:36]} 10. f4 {[%clk 0:02:48]}  Ng6 {[%clk 0:02:33]} 11. fxe5 {[%clk 0:02:40]}  dxe5 {[%clk 0:02:28]} 12. Bg5 {[%clk 0:02:40]}  h6 {[%clk 0:02:22]} 13. Bxf6 {[%clk 0:02:39]}  gxf6 {[%clk 0:02:23]} 14. Rf2 {[%clk 0:02:30]}  c5 {[%clk 0:02:17]} 15. d5 {[%clk 0:02:18]}  Bg4 {[%clk 0:02:15]} 16. g3 {[%clk 0:01:58]}  Kg7 {[%clk 0:02:06]} 17. Kg2 {[%clk 0:01:52]}  h5 {[%clk 0:02:03]} 18. Raf1 {[%clk 0:01:46]}  Rh8 {[%clk 0:01:49]} 19. Rxf6 {[%clk 0:01:26]}  Qxf6 {[%clk 0:01:47]} 20. Rxf6 {[%clk 0:01:27]}  Kxf6 {[%clk 0:01:48]} 21. Ng1 {[%clk 0:01:24]}  Ke7 {[%clk 0:01:39]} 22. Qf2 {[%clk 0:00:58]}  b6 {[%clk 0:01:29]} 23. d6+ {[%clk 0:00:57]}  Kxd6 {[%clk 0:01:29]} 24. Qxf7 {[%clk 0:00:55]}  Ne7 {[%clk 0:01:28]} 25. Qf6+ {[%clk 0:00:49]}  Be6 {[%clk 0:01:27]} 26. Nf3 {[%clk 0:00:49]}  Nc6 {[%clk 0:01:25]} 27. Ng5 {[%clk 0:00:46]}  Rhe8 {[%clk 0:01:21]} 28. Be2 {[%clk 0:00:38]}  Re7 {[%clk 0:01:13]} 29. Bxh5 {[%clk 0:00:34]}  a6 {[%clk 0:01:11]} 30. Bg4 {[%clk 0:00:31]}  Nd8 {[%clk 0:01:10]} 31. Bxe6 {[%clk 0:00:28]}  Nxe6 {[%clk 0:01:09]} 32. Nf7+ {[%clk 0:00:29]}  Kd7 {[%clk 0:01:04]} 33. Nxe5+ {[%clk 0:00:29]}  Kd6 {[%clk 0:01:05]} 34. Ng6 {[%clk 0:00:26]}  Ree8 {[%clk 0:01:01]} 35. Qe5+ {[%clk 0:00:25]}  Kd7 {[%clk 0:01:01]} 36. Qd5+ {[%clk 0:00:25]}  Kc7 {[%clk 0:01:01]} 37. Ne5 {[%clk 0:00:20]}  Rad8 {[%clk 0:00:30]} 38. Qc6+ {[%clk 0:00:19]}  Kb8 {[%clk 0:00:30]} 39. Qxb6+ {[%clk 0:00:19]}  Kc8 {[%clk 0:00:30]} 40. Qxa6+ {[%clk 0:00:18]}  Kc7 {[%clk 0:00:30]} 41. Qc6+ {[%clk 0:00:18]}  Kb8 {[%clk 0:00:30]} 42. Qb6+ {[%clk 0:00:18]}  Kc8 {[%clk 0:00:31]} 43. Nc6 {[%clk 0:00:16]}  Rd6 {[%clk 0:00:25]} 44. Qb5 {[%clk 0:00:13]}  Kc7 {[%clk 0:00:24]} 45. Na5 {[%clk 0:00:11]}  Rb8 {[%clk 0:00:24]} 46. Qa6 {[%clk 0:00:05]}  Rxa6 {[%clk 0:00:24]} 0-1


[Site "https://www.chess.com"]

[Event "Titled Tuesday Blitz July 18 Early 2023"]
[White "Pinero Rodriguez, Carlos Jose"]
[Black "Manukian, Artak"]
[WhiteFideId "3901726"]
[BlackFideId "13301373"]
[WhiteElo "2585"]
[BlackElo "2425"]
[Result "1-0"]
[Round "8"]
[TimeControl "180+2"]
[Date "2023.07.18"]
[WhiteClock "0:00:11"]
[BlackClock "0:00:08"]
[Board "79"]

1. b3 {[%clk 0:03:00]}  a5 {[%clk 0:02:59]} 2. a3 {[%clk 0:03:00]}  c5 {[%clk 0:02:58]} 3. e3 {[%clk 0:02:58]}  a4 {[%clk 0:02:56]} 4. Bb2 {[%clk 0:02:52]}  Nf6 {[%clk 0:02:48]} 5. c4 {[%clk 0:02:48]}  axb3 {[%clk 0:02:43]} 6. Qxb3 {[%clk 0:02:48]}  Nc6 {[%clk 0:02:41]} 7. Nf3 {[%clk 0:02:47]}  d6 {[%clk 0:02:41]} 8. Qc2 {[%clk 0:02:44]}  g6 {[%clk 0:02:39]} 9. Bxf6 {[%clk 0:02:42]}  exf6 {[%clk 0:02:39]} 10. Nc3 {[%clk 0:02:42]}  Bg7 {[%clk 0:02:38]} 11. g3 {[%clk 0:02:38]}  f5 {[%clk 0:02:33]} 12. Bg2 {[%clk 0:02:38]}  h5 {[%clk 0:02:32]} 13. h4 {[%clk 0:02:37]}  O-O {[%clk 0:02:30]} 14. O-O {[%clk 0:02:36]}  Ne5 {[%clk 0:02:22]} 15. Nxe5 {[%clk 0:02:10]}  dxe5 {[%clk 0:02:23]} 16. Bd5 {[%clk 0:02:10]}  f4 {[%clk 0:02:17]} 17. Ne4 {[%clk 0:02:07]}  Bf5 {[%clk 0:02:14]} 18. Kg2 {[%clk 0:01:49]}  Qe7 {[%clk 0:01:55]} 19. Rab1 {[%clk 0:01:44]}  Rfb8 {[%clk 0:01:51]} 20. Rb3 {[%clk 0:01:44]}  Ra7 {[%clk 0:01:42]} 21. Rfb1 {[%clk 0:01:42]}  Qc7 {[%clk 0:01:17]} 22. Qd1 {[%clk 0:01:27]}  Bg4 {[%clk 0:01:06]} 23. f3 {[%clk 0:01:13]}  Bf5 {[%clk 0:01:03]} 24. R1b2 {[%clk 0:01:08]}  fxg3 {[%clk 0:00:59]} 25. Ng5 {[%clk 0:01:06]}  Bf6 {[%clk 0:00:40]} 26. Bxf7+ {[%clk 0:00:51]}  Kg7 {[%clk 0:00:39]} 27. Bd5 {[%clk 0:00:42]}  Bxg5 {[%clk 0:00:39]} 28. hxg5 {[%clk 0:00:43]}  e4 {[%clk 0:00:37]} 29. f4 {[%clk 0:00:42]}  h4 {[%clk 0:00:37]} 30. Qh1 {[%clk 0:00:29]}  h3+ {[%clk 0:00:34]} 31. Kxg3 {[%clk 0:00:29]}  Bc8 {[%clk 0:00:29]} 32. Qxe4 {[%clk 0:00:26]}  Qd7 {[%clk 0:00:29]} 33. Qe5+ {[%clk 0:00:24]}  Kh7 {[%clk 0:00:27]} 34. Bf3 {[%clk 0:00:19]}  h2 {[%clk 0:00:26]} 35. Rb1 {[%clk 0:00:15]}  Qh3+ {[%clk 0:00:24]} 36. Kf2 {[%clk 0:00:15]}  Qh4+ {[%clk 0:00:19]} 37. Ke2 {[%clk 0:00:15]}  Bg4 {[%clk 0:00:19]} 38. Qc7+ {[%clk 0:00:14]}  Kg8 {[%clk 0:00:15]} 39. Qxb8+ {[%clk 0:00:12]}  Kf7 {[%clk 0:00:15]} 40. Rxb7+ {[%clk 0:00:11]}  Rxb7 {[%clk 0:00:08]} 41. Rxb7+ {[%clk 0:00:11]} 1-0


[Site "https://www.chess.com"]

[Event "Titled Tuesday Blitz July 18 Early 2023"]
[White "ArturoCaceres"]
[Black "Parpiev, Isaak"]
[BlackFideId "34281576"]
[WhiteElo "2412"]
[BlackElo "2584"]
[Result "0-1"]
[Round "8"]
[TimeControl "180+2"]
[Date "2023.07.18"]
[WhiteClock "0:00:00"]
[BlackClock "0:00:34"]
[Board "80"]

1. e4 {[%clk 0:01:19]}  c6 {[%clk 0:01:58]} 2. d4 {[%clk 0:01:10]}  d5 {[%clk 0:01:55]} 3. e5 {[%clk 0:01:06]}  Bf5 {[%clk 0:01:55]} 4. Ke2 {[%clk 0:00:57]}  e6 {[%clk 0:01:51]} 5. Nf3 {[%clk 0:00:53]}  c5 {[%clk 0:01:51]} 6. c3 {[%clk 0:00:53]}  Nc6 {[%clk 0:01:52]} 7. Ke1 {[%clk 0:00:53]}  Rc8 {[%clk 0:01:45]} 8. a3 {[%clk 0:00:50]}  Qb6 {[%clk 0:01:44]} 9. b4 {[%clk 0:00:46]}  cxd4 {[%clk 0:01:43]} 10. cxd4 {[%clk 0:00:47]}  a5 {[%clk 0:01:25]} 11. b5 {[%clk 0:00:46]}  Na7 {[%clk 0:01:11]} 12. a4 {[%clk 0:00:45]}  Bc2 {[%clk 0:01:09]} 13. Qe2 {[%clk 0:00:35]}  Nh6 {[%clk 0:01:02]} 14. Bd2 {[%clk 0:00:20]}  Nf5 {[%clk 0:00:59]} 15. Be3 {[%clk 0:00:06]}  Bb4+ {[%clk 0:00:40]} 16. Nbd2 {[%clk 0:00:06]}  O-O {[%clk 0:00:40]} 17. g4 {[%clk 0:00:06]}  Nxe3 {[%clk 0:00:38]} 18. fxe3 {[%clk 0:00:06]}  Be4 {[%clk 0:00:36]} 19. Kf2 {[%clk 0:00:06]}  Bxd2 {[%clk 0:00:33]} 20. Nxd2 {[%clk 0:00:05]}  Bxh1 {[%clk 0:00:33]} 21. Bh3 {[%clk 0:00:03]}  Be4 {[%clk 0:00:33]} 22. g5 {[%clk 0:00:04]}  Bg6 {[%clk 0:00:33]} 23. Bg4 {[%clk 0:00:03]}  Rc2 {[%clk 0:00:34]} 24. h4 {[%clk 0:00:03]}  Rfc8 {[%clk 0:00:33]} 25. h5 {[%clk 0:00:03]}  Rxd2 {[%clk 0:00:33]} 26. Qxd2 {[%clk 0:00:03]}  Rc2 {[%clk 0:00:33]} 27. Qxc2 {[%clk 0:00:03]}  Bxc2 {[%clk 0:00:34]} 28. Ke2 {[%clk 0:00:00]}  Bxa4 {[%clk 0:00:34]} 0-1


[Site "https://www.chess.com"]